bitfinex-derivatives/quotes_SOLF0:USTF0_20260306
["timestamp","ask_amount","ask_price","bid_price","bid_amount"]
[1772831527715,9.22062759,84.863,84.84,3.6349071]
[1772831527910,9.22062759,84.862,84.84,3.6349071]
[1772831528106,9.22062759,84.861,84.84,3.6349071]
[1772831528306,9.22062759,84.86,84.84,3.6349071]
[1772831528508,9.22062759,84.859,84.84,3.6349071]
[1772831528712,9.22062759,84.858,84.84,3.6349071]
[1772831528917,9.22062759,84.857,84.84,3.6349071]
[1772831529118,3.82829943,84.865,84.84,3.6349071]
[1772831529313,9.22105475,84.864,84.841,10.608]
[1772831529618,9.22105475,84.863,84.841,10.608]
[1772831529916,9.22105475,84.862,84.841,10.608]
[1772831530116,9.22105475,84.861,84.841,10.608]
[1772831530318,9.22105475,84.86,84.841,10.608]
[1772831530514,9.22105475,84.859,84.841,10.608]
[1772831530817,9.22105475,84.858,84.84,3.6349071]
[1772831531017,9.22105475,84.857,84.84,3.6349071]
[1772831531213,3.82829943,84.876,84.842,3.98103914]
[1772831531415,9.22137654,84.875,84.842,3.98103914]
[1772831531618,13.04967597,84.874,84.842,3.98103914]
[1772831531819,9.22137654,84.873,84.842,3.98103914]
[1772831532009,9.22137654,84.872,84.844,10.608]
[1772831532209,9.22137654,84.871,84.844,10.608]
[1772831532421,9.22137654,84.87,84.844,10.608]
[1772831532620,9.22137654,84.869,84.844,10.608]
[1772831532822,9.22137654,84.868,84.844,10.608]
[1772831533023,9.22137654,84.867,84.844,10.608]
[1772831533222,9.22137654,84.866,84.844,10.608]
[1772831533520,3.82829943,84.874,84.844,10.608]
[1772831533521,9.22137654,84.865,84.844,10.608]
[1772831533721,9.22137654,84.864,84.844,10.608]
[1772831533920,9.22137654,84.863,84.844,10.608]
[1772831534121,9.22137654,84.862,84.844,10.608]
[1772831534316,3.82829943,84.874,84.844,10.608]
[1772831534522,13.04801609,84.873,84.844,10.608]
[1772831534717,9.21971666,84.872,84.844,10.608]
[1772831534923,12.16523198,84.871,84.844,10.608]
[1772831535124,12.16523198,84.87,84.844,10.608]
[1772831535325,12.16523198,84.869,84.844,10.608]
[1772831535624,12.16523198,84.868,84.842,3.98103914]
[1772831535924,12.16523198,84.867,84.842,3.98103914]
[1772831536123,12.16523198,84.866,84.842,3.98103914]
[1772831536419,12.16523198,84.865,84.842,3.98103914]
[1772831536623,12.16523198,84.864,84.842,3.98103914]
[1772831536823,12.16523198,84.863,84.842,3.98103914]
[1772831537021,12.16523198,84.862,84.84,3.6349071]
[1772831537225,3.82829943,84.873,84.84,3.6349071]
[1772831537226,12.16523198,84.861,84.84,3.6349071]
[1772831537526,12.16523198,84.86,84.84,3.6349071]
[1772831537718,12.16523198,84.859,84.84,3.6349071]
[1772831537923,12.16523198,84.858,84.84,3.6349071]
[1772831538125,2.94551532,84.857,84.84,3.6349071]
[1772831538425,2.94551532,84.856,84.84,3.6349071]
[1772831538620,2.94551532,84.855,84.84,3.6349071]
[1772831538825,2.94551532,84.854,84.84,3.6349071]
[1772831539026,2.94551532,84.853,84.84,3.6349071]
[1772831539228,2.94551532,84.852,84.84,3.6349071]
[1772831539426,2.94551532,84.851,84.84,3.6349071]
[1772831539728,10.606,84.862,84.833,3.98103914]
[1772831539928,9.21991549,84.861,84.833,3.98103914]
[1772831540130,9.21991549,84.86,84.833,3.98103914]
[1772831540330,9.21991549,84.859,84.833,3.98103914]
[1772831540528,9.21991549,84.858,84.833,3.98103914]
[1772831540726,9.21991549,84.857,84.833,3.98103914]
[1772831541022,3.82829943,84.865,84.833,3.98103914]
[1772831541225,9.20969747,84.864,84.833,3.98103914]
[1772831541426,9.20969747,84.863,84.84,3.6349071]
[1772831541627,9.20969747,84.862,84.84,3.6349071]
[1772831541830,9.20969747,84.861,84.84,3.6349071]
[1772831542136,9.20969747,84.86,84.84,3.6349071]
[1772831542337,9.20969747,84.859,84.84,3.6349071]
[1772831542537,9.20969747,84.858,84.84,3.6349071]
[1772831542733,3.82829943,84.865,84.84,3.6349071]
[1772831542930,9.20973608,84.864,84.84,3.6349071]
[1772831543136,9.20973608,84.863,84.84,3.6349071]
[1772831543438,9.20973608,84.862,84.84,3.6349071]
[1772831543639,9.20973608,84.861,84.84,3.6349071]
[1772831543839,9.20973608,84.86,84.84,3.6349071]
[1772831544038,3.82829943,84.865,84.84,3.6349071]
[1772831544236,9.20901933,84.864,84.84,3.6349071]
[1772831544436,9.20901933,84.863,84.84,3.6349071]
[1772831544737,3.82829943,84.865,84.84,3.6349071]
[1772831544937,9.20864604,84.864,84.84,3.6349071]
[1772831545137,9.20864604,84.863,84.84,3.6349071]
[1772831545340,3.82829943,84.865,84.84,3.6349071]
[1772831545640,9.20827183,84.864,84.84,3.6349071]
[1772831545837,9.20827183,84.863,84.84,3.6349071]
[1772831546037,3.82829943,84.865,84.84,3.6349071]
[1772831546239,9.20827253,84.864,84.84,3.6349071]
[1772831546440,9.20827253,84.863,84.84,3.6349071]
[1772831546636,3.82829943,84.865,84.84,3.6349071]
[1772831546838,9.20793316,84.864,84.84,3.6349071]
[1772831547038,9.20793316,84.863,84.84,3.6349071]
[1772831547342,3.82829943,84.865,84.84,3.6349071]
[1772831547532,9.20762295,84.864,84.84,3.6349071]
[1772831547736,9.20762295,84.863,84.84,3.6349071]
[1772831548039,3.82829943,84.865,84.84,3.6349071]
[1772831548239,9.20755355,84.864,84.84,3.6349071]
[1772831548542,9.20755355,84.863,84.84,3.6349071]
[1772831548740,3.82829943,84.865,84.84,3.6349071]
[1772831548939,9.20733633,84.864,84.84,3.6349071]
[1772831549137,9.20733633,84.863,84.84,3.6349071]
[1772831549339,3.82829943,84.865,84.84,3.6349071]
[1772831549637,9.20707029,84.864,84.84,3.6349071]
[1772831549837,3.82829943,84.862,84.83,3.6349071]
[1772831550037,3.82829943,84.862,84.83,7.61594624]
[1772831550236,3.82829943,84.862,84.831,3.98103914]
[1772831551142,3.82829943,84.862,84.831,14.59003914]
[1772831551537,2.94552412,84.861,84.831,14.59003914]
[1772831551733,2.94552412,84.86,84.831,14.59003914]
[1772831551939,3.90082695,84.858,84.833,10.609]
[1772831552237,2.94552412,84.857,84.833,10.609]
[1772831552438,10.603,84.88,84.833,10.609]
[1772831552741,9.20654718,84.879,84.833,10.609]
[1772831552943,9.20654718,84.878,84.833,10.609]
[1772831553143,9.20654718,84.877,84.833,10.609]
[1772831553342,9.20654718,84.876,84.833,10.609]
[1772831553543,9.20654718,84.875,84.833,10.609]
[1772831553746,9.20654718,84.874,84.833,10.609]
[1772831553940,9.20654718,84.873,84.833,10.609]
[1772831554141,9.20654718,84.872,84.833,10.609]
[1772831554340,10.603,84.88,84.833,10.609]
[1772831554341,9.20654718,84.871,84.833,10.609]
[1772831554541,3.90082695,84.869,84.833,10.609]
[1772831554745,3.90082695,84.867,84.833,10.609]
[1772831554942,3.90082695,84.865,84.833,10.609]
[1772831555141,3.90082695,84.863,84.83,3.6349071]
[1772831555343,9.20654718,84.862,84.83,7.59176858]
[1772831555643,3.90082695,84.863,84.83,7.59176858]
[1772831555644,9.20654718,84.861,84.83,7.59176858]
[1772831555845,9.20654718,84.86,84.83,7.59176858]
[1772831556043,9.20654718,84.859,84.83,7.59176858]
[1772831556244,9.20755392,84.858,84.83,7.59176858]
[1772831556445,3.90082695,84.863,84.83,7.59176858]
[1772831556744,3.90082695,84.856,84.83,7.59176858]
[1772831557043,9.20755392,84.855,84.83,7.59176858]
[1772831557345,9.20755392,84.854,84.83,7.59176858]
[1772831557643,3.90082695,84.856,84.83,7.59176858]
[1772831557843,9.2069091,84.855,84.83,7.59176858]
[1772831558044,9.2069091,84.854,84.83,7.59176858]
[1772831558245,3.90082695,84.856,84.83,7.59176858]
[1772831558546,9.20632078,84.855,84.83,7.59220345]
[1772831558743,9.20632078,84.854,84.83,7.59220345]
[1772831558947,3.90082695,84.856,84.83,7.59220345]
[1772831559246,9.20632078,84.855,84.83,7.59220345]
[1772831559443,9.20632078,84.854,84.83,7.59220345]
[1772831559641,3.90082695,84.856,84.83,7.59220345]
[1772831559843,9.20577682,84.855,84.83,7.59220345]
[1772831560149,9.20577682,84.854,84.83,7.59220345]
[1772831560346,3.90082695,84.856,84.83,7.59220345]
[1772831560546,9.20527571,84.855,84.83,7.59220345]
[1772831560845,9.20527571,84.854,84.83,7.59220345]
[1772831561047,3.90082695,84.856,84.83,7.59220345]
[1772831561247,9.20518423,84.855,84.83,7.59220345]
[1772831561440,3.90082695,84.856,84.83,7.59220345]
[1772831561644,9.20479945,84.855,84.83,7.59220345]
[1772831561946,9.20489903,84.854,84.83,7.59220345]
[1772831562149,3.90082695,84.856,84.83,3.95686148]
[1772831562341,9.20424629,84.855,84.83,3.95686148]
[1772831562539,3.90082695,84.856,84.83,3.95686148]
[1772831562851,9.20424629,84.855,84.83,3.95686148]
[1772831563046,3.90082695,84.856,84.83,3.95686148]
[1772831563243,3.90082695,84.853,84.822,10.61]
[1772831563439,3.90082695,84.851,84.822,10.61]
[1772831563747,13.10501045,84.85,84.822,10.61]
[1772831563948,3.90082695,84.85,84.822,10.61]
[1772831564348,12.1492894,84.849,84.822,10.61]
[1772831564549,12.1492894,84.848,84.822,10.61]
[1772831564848,12.1492894,84.847,84.822,10.61]
[1772831565052,12.1492894,84.846,84.822,10.61]
[1772831565246,2.94633972,84.845,84.822,10.61]
[1772831565549,2.94633972,84.844,84.822,10.61]
[1772831565748,2.94633972,84.843,84.822,10.61]
[1772831565949,2.94633972,84.842,84.822,10.61]
[1772831566145,2.94633972,84.841,84.822,10.61]
[1772831566346,2.94633972,84.84,84.822,10.61]
[1772831566545,2.94633972,84.839,84.822,10.61]
[1772831566850,2.94633972,84.838,84.822,10.61]
[1772831567045,3.90082695,84.85,84.822,10.61]
[1772831567251,12.14557023,84.849,84.822,10.61]
[1772831567450,12.14557023,84.848,84.822,10.61]
[1772831567746,2.94633972,84.847,84.822,10.61]
[1772831567940,2.94633972,84.846,84.822,10.61]
[1772831568145,3.90082695,84.85,84.822,10.61]
[1772831568146,2.94633972,84.845,84.822,10.61]
[1772831568343,2.94633972,84.844,84.822,10.61]
[1772831568543,2.94633972,84.843,84.822,10.61]
[1772831568744,2.94633972,84.842,84.822,10.61]
[1772831568943,2.94633972,84.841,84.822,10.61]
[1772831569143,2.94633972,84.84,84.822,10.61]
[1772831569346,3.90082695,84.85,84.822,10.61]
[1772831569549,12.14158448,84.849,84.822,10.61]
[1772831569864,2.94633975,84.848,84.822,10.61]
[1772831570154,2.94633975,84.847,84.822,10.61]
[1772831570354,2.94633975,84.846,84.822,10.61]
[1772831570554,2.94633975,84.845,84.822,10.61]
[1772831570849,3.90082695,84.85,84.822,10.61]
[1772831570850,2.94633975,84.844,84.822,10.61]
[1772831571153,3.90082695,84.85,84.82,7.59220345]
[1772831571154,2.94633975,84.843,84.82,3.95686148]
[1772831571353,2.94633975,84.843,84.814,10.611]
[1772831571354,2.94633975,84.842,84.814,10.611]
[1772831571548,2.94633975,84.841,84.814,10.611]
[1772831571746,2.94633975,84.84,84.814,10.611]
[1772831571947,2.94633975,84.839,84.814,10.611]
[1772831572148,2.94633975,84.838,84.814,10.611]
[1772831572354,3.90082695,84.85,84.814,10.611]
[1772831572658,3.90082695,84.848,84.814,10.611]
[1772831572846,16.03861457,84.847,84.814,10.611]
[1772831573049,6.84720603,84.846,84.814,10.611]
[1772831573252,2.94637908,84.845,84.821,10.611]
[1772831573452,2.94637908,84.844,84.821,10.611]
[1772831573652,2.94637908,84.843,84.821,10.611]
[1772831573947,2.94637908,84.842,84.821,10.611]
[1772831574148,2.94637908,84.841,84.821,10.611]
[1772831574455,3.90082695,84.846,84.821,10.611]
[1772831577265,11.02808912,84.868,84.821,10.611]
[1772831577453,4.0005667,84.866,84.821,10.611]
[1772831577654,4.0005667,84.864,84.821,10.611]
[1772831577861,4.0005667,84.862,84.821,10.611]
[1772831578062,4.0005667,84.86,84.821,10.611]
[1772831578261,4.0005667,84.858,84.821,10.611]
[1772831578462,4.0005667,84.856,84.821,10.611]
[1772831578664,13.18747392,84.855,84.821,10.611]
[1772831578865,9.18690722,84.854,84.821,10.611]
[1772831579164,9.18690722,84.853,84.821,10.611]
[1772831579464,9.18690722,84.852,84.821,14.61864479]
[1772831579659,9.18690722,84.851,84.821,14.61864479]
[1772831579862,9.18690722,84.85,84.821,14.61864479]
[1772831582166,3.94214947,84.885,84.841,3.65478837]
[1772831582468,3.94214947,84.883,84.841,3.65478837]
[1772831582770,9.18442876,84.882,84.861,3.65478837]
[1772831582969,898.61227709,84.905,84.871,3.65478837]
[1772831583167,14.66238825,84.925,84.89,3.63534197]
[1772831583168,3.94214947,84.924,84.89,3.63534197]
[1772831583765,3.94214947,84.924,84.881,3.65478837]
[1772831584261,3.94214947,84.919,84.87,3.63534197]
[1772831584466,3.94214947,84.913,84.87,3.63534197]
[1772831584967,3.94214947,84.913,84.861,3.65478837]
[1772831585969,3.94214947,84.911,84.861,3.65478837]
[1772831586370,3.94214947,84.909,84.861,3.65478837]
[1772831586567,3.94214947,84.907,84.861,3.65478837]
[1772831586769,3.94214947,84.905,84.87,3.63534197]
[1772831586964,2.9446446,84.904,84.87,3.63534197]
[1772831587170,3.94214947,84.902,84.87,3.63534197]
[1772831587872,3.94214947,84.899,84.851,3.65478837]
[1772831588174,3.94214947,84.897,84.851,3.65478837]
[1772831588370,3.94214947,84.895,84.851,3.65478837]
[1772831588570,3.94214947,84.893,84.851,3.65478837]
[1772831588771,10.603,84.886,84.86,3.63534197]
[1772831589571,10.604,84.878,84.86,3.63534197]
[1772831589874,3.94214947,84.891,84.87,3.63534197]
[1772831590876,10.603,84.885,84.87,3.63534197]
[1772831592872,10.603,84.885,84.86,3.65478837]
[1772831592873,10.603,84.885,84.86,7.29013034]
[1772831593768,10.603,84.885,84.861,3.65478837]
[1772831596080,3.94214947,84.891,84.861,3.65478837]
[1772831596274,10.602,84.894,84.87,3.63534197]
[1772831596576,10.602,84.894,84.871,3.65478837]
[1772831598279,10.602,84.887,84.871,3.65478837]
[1772831598577,3.94214947,84.901,84.871,3.65478837]
[1772831599875,10.602,84.887,84.871,3.65478837]
[1772831601976,10.601,84.895,84.871,3.65478837]
[1772831602582,3.94214947,84.894,84.87,3.63534197]
[1772831602777,3.94214947,84.894,84.86,3.63534197]
[1772831603881,10.603,84.882,84.86,3.63534197]
[1772831607175,10.604,84.875,84.86,3.63534197]
[1772831607376,3.94214947,84.885,84.85,3.63534197]
[1772831608879,10.604,84.878,84.85,3.63534197]
[1772831609676,10.604,84.878,84.85,7.29013034]
[1772831610074,10.604,84.878,84.86,3.63534197]
[1772831615687,3.94214947,84.885,84.86,3.63534197]
[1772831616188,3.99449544,84.882,84.85,3.63534197]
[1772831616488,3.99449544,84.88,84.85,3.63534197]
[1772831616687,3.99449544,84.878,84.85,3.63534197]
[1772831617386,3.99449544,84.876,84.84,3.63534197]
[1772831617588,3.99449544,84.874,84.84,3.63534197]
[1772831617785,3.99449544,84.872,84.839,302.03714186]
[1772831617991,3.99449544,84.87,84.839,302.03714186]
[1772831618485,3.99449544,84.868,84.84,3.63470963]
[1772831618688,3.99449544,84.868,84.831,3.80466981]
[1772831619288,3.99449544,84.866,84.84,3.63470963]
[1772831619488,3.99449544,84.864,84.84,3.63470963]
[1772831624191,2.94599504,84.863,84.84,3.63470963]
[1772831624390,3.99449544,84.863,84.831,3.80466981]
[1772831626389,10.606,84.862,84.831,3.80466981]
[1772831627693,10.606,84.86,84.831,3.80466981]
[1772831629795,14.60149544,84.854,84.83,3.63470963]
[1772831629992,14.60149544,84.854,84.822,3.80466981]
[1772831630496,3.99449544,84.854,84.822,3.80466981]
[1772831631597,3.99449544,84.854,84.83,3.63470963]
[1772831634599,3.99449544,84.854,84.822,3.80466981]
[1772831636793,3.83460245,84.852,84.821,312.5084029]
[1772831637901,3.83460245,84.85,84.821,312.5084029]
[1772831639804,3.83460245,84.85,84.813,4.00790703]
[1772831640601,3.83460245,84.845,84.813,4.00790703]
[1772831650003,10.608,84.841,84.813,4.00790703]
[1772831650403,3.83460245,84.845,84.813,4.00790703]
[1772831657612,14.66238825,84.883,84.813,4.00790703]
[1772831657613,3.63579133,84.854,84.813,4.00790703]
[1772831657818,3.63579133,84.854,84.821,3.67930354]
[1772831659218,2.94634715,84.853,84.821,3.67930354]
[1772831659421,2.94634715,84.852,84.821,3.67930354]
[1772831659621,2.94634715,84.851,84.821,3.67930354]
[1772831659813,3.63579133,84.854,84.821,3.67930354]
[1772831660014,2.94638198,84.853,84.821,3.67930354]
[1772831660218,2.94638198,84.852,84.821,3.67930354]
[1772831660414,2.94638198,84.851,84.821,3.67930354]
[1772831660622,2.94638198,84.85,84.821,3.67930354]
[1772831660821,2.94638198,84.849,84.821,3.67930354]
[1772831661022,2.94638198,84.848,84.821,3.67930354]
[1772831661225,2.94638198,84.847,84.821,3.67930354]
[1772831661425,2.94638198,84.846,84.821,3.67930354]
[1772831661621,2.94638198,84.845,84.821,3.67930354]
[1772831661820,3.63579133,84.854,84.821,3.67930354]
[1772831662017,12.09056771,84.853,84.821,3.67930354]
[1772831662216,12.09056771,84.852,84.821,3.67930354]
[1772831662420,12.09056771,84.851,84.821,3.67930354]
[1772831662620,12.09056771,84.85,84.821,3.67930354]
[1772831662821,12.09056771,84.849,84.821,3.67930354]
[1772831663017,12.09056771,84.848,84.821,3.67930354]
[1772831663228,12.09056771,84.847,84.821,3.67930354]
[1772831663528,2.94638198,84.846,84.821,3.67930354]
[1772831663725,2.94638198,84.845,84.821,3.67930354]
[1772831663927,2.94638198,84.844,84.821,3.67930354]
[1772831664118,2.94638198,84.843,84.821,3.67930354]
[1772831664426,3.63579133,84.854,84.821,3.67930354]
[1772831664626,12.09395893,84.853,84.821,3.67930354]
[1772831664824,12.09395893,84.852,84.821,3.67930354]
[1772831665026,12.09395893,84.851,84.821,3.67930354]
[1772831665227,12.09395893,84.85,84.821,3.67930354]
[1772831665428,12.09395893,84.849,84.821,3.67930354]
[1772831665624,12.09395893,84.848,84.821,3.67930354]
[1772831665825,12.09395893,84.847,84.821,3.67930354]
[1772831666128,12.09395893,84.846,84.821,3.67930354]
[1772831666430,2.94638218,84.845,84.821,3.67930354]
[1772831666729,2.94638218,84.844,84.821,3.67930354]
[1772831666927,2.94638218,84.843,84.821,3.67930354]
[1772831667129,3.63579133,84.854,84.821,3.67930354]
[1772831667429,12.09600119,84.853,84.821,3.67930354]
[1772831667628,12.09600119,84.852,84.821,3.67930354]
[1772831667825,12.09600119,84.851,84.821,3.67930354]
[1772831668122,12.09600119,84.85,84.821,3.67930354]
[1772831668328,12.09600119,84.849,84.821,3.67930354]
[1772831668630,12.09600119,84.848,84.821,3.67930354]
[1772831668830,12.09600119,84.847,84.821,3.67930354]
[1772831669029,12.09600119,84.846,84.821,3.67930354]
[1772831669329,12.09600119,84.845,84.821,3.67930354]
[1772831669528,2.94638218,84.844,84.821,3.67930354]
[1772831669730,2.94638218,84.843,84.821,3.67930354]
[1772831669930,2.94638218,84.842,84.821,3.67930354]
[1772831670231,3.63579133,84.854,84.821,3.67930354]
[1772831670430,12.09864052,84.853,84.821,3.67930354]
[1772831670730,12.09864052,84.852,84.821,3.67930354]
[1772831670929,12.09864052,84.851,84.821,3.67930354]
[1772831671131,12.09864052,84.85,84.821,3.67930354]
[1772831671332,12.09864052,84.849,84.821,3.67930354]
[1772831671630,12.09864052,84.848,84.821,3.67930354]
[1772831671825,12.09864052,84.847,84.821,3.67930354]
[1772831672026,12.09864052,84.846,84.821,3.67930354]
[1772831672332,12.09864052,84.845,84.821,3.67930354]
[1772831672530,12.09864052,84.844,84.821,3.67930354]
[1772831672729,2.94634759,84.843,84.821,3.67930354]
[1772831672931,2.94634759,84.842,84.821,3.67930354]
[1772831673232,2.94634759,84.841,84.821,3.67930354]
[1772831673429,2.94634759,84.84,84.821,3.67930354]
[1772831673630,3.63579133,84.854,84.821,3.67930354]
[1772831673833,12.10260372,84.853,84.821,3.67930354]
[1772831674032,12.10260372,84.852,84.821,3.67930354]
[1772831674233,12.10260372,84.851,84.821,3.67930354]
[1772831674431,12.10260372,84.85,84.821,3.67930354]
[1772831674632,12.10260372,84.849,84.821,3.67930354]
[1772831674828,12.10260372,84.848,84.821,3.67930354]
[1772831675031,12.10260372,84.847,84.821,3.67930354]
[1772831675231,12.10260372,84.846,84.821,3.67930354]
[1772831675433,12.10260372,84.845,84.821,3.67930354]
[1772831675636,12.10260372,84.844,84.821,3.67930354]
[1772831675833,12.10260372,84.843,84.821,3.67930354]
[1772831676034,2.94634663,84.842,84.821,3.67930354]
[1772831676231,3.74444944,84.84,84.804,3.65271509]
[1772831676431,2.94634663,84.839,84.811,3.65271509]
[1772831676625,2.94634663,84.838,84.811,3.65271509]
[1772831676830,3.74444944,84.85,84.811,3.65271509]
[1772831677031,3.74444944,84.848,84.811,3.65271509]
[1772831677334,12.10710048,84.847,84.811,3.65271509]
[1772831677534,12.10710048,84.846,84.811,3.65271509]
[1772831677726,12.10710048,84.845,84.811,3.65271509]
[1772831677925,12.10710048,84.844,84.811,3.65271509]
[1772831678136,12.10710048,84.843,84.811,3.65271509]
[1772831678332,12.10710048,84.842,84.811,3.65271509]
[1772831678532,12.10710048,84.841,84.811,3.65271509]
[1772831678837,2.9463824,84.84,84.811,3.65271509]
[1772831679036,2.9463824,84.839,84.811,3.65271509]
[1772831679335,2.9463824,84.838,84.811,3.65271509]
[1772831679636,10.607,84.847,84.811,3.65271509]
[1772831679834,10.608,84.845,84.811,3.65271509]
[1772831680036,12.10830544,84.844,84.811,3.65271509]
[1772831680234,2.94638201,84.843,84.83,3.63470963]
[1772831680436,14.35044944,84.859,84.831,3.65271509]
[1772831680632,9.16124064,84.858,84.831,3.65271509]
[1772831680827,9.16124064,84.857,84.831,3.65271509]
[1772831681027,9.16124064,84.856,84.831,3.65271509]
[1772831681232,9.16124064,84.855,84.831,3.65271509]
[1772831681432,9.16124064,84.854,84.831,3.65271509]
[1772831681633,9.16124064,84.853,84.831,3.65271509]
[1772831681836,9.16124064,84.852,84.831,3.65271509]
[1772831682035,9.16124064,84.851,84.831,3.65271509]
[1772831682236,9.16124064,84.85,84.831,3.65271509]
[1772831682438,9.16124064,84.849,84.831,3.65271509]
[1772831682637,9.16124064,84.848,84.831,3.65271509]
[1772831682841,3.74444944,84.859,84.831,3.65271509]
[1772831683132,9.15984155,84.858,84.831,3.65271509]
[1772831683336,9.15984155,84.857,84.831,3.65271509]
[1772831683528,9.15984155,84.856,84.831,3.65271509]
[1772831683731,9.15984155,84.855,84.831,3.65271509]
[1772831683928,9.15984155,84.854,84.831,3.65271509]
[1772831684133,9.15984155,84.853,84.831,3.65271509]
[1772831684337,9.15984155,84.852,84.831,3.65271509]
[1772831684529,9.15984155,84.851,84.831,3.65271509]
[1772831684729,9.15984155,84.85,84.831,3.65271509]
[1772831684928,9.15984155,84.849,84.831,3.65271509]
[1772831685138,3.74444944,84.859,84.831,3.65271509]
[1772831685436,9.15797643,84.858,84.831,3.65271509]
[1772831685738,9.15797643,84.857,84.831,3.65271509]
[1772831685939,9.15797643,84.856,84.831,3.65271509]
[1772831686130,9.15797643,84.855,84.831,3.65271509]
[1772831686335,9.15797643,84.854,84.831,3.65271509]
[1772831686636,9.15797643,84.853,84.831,3.65271509]
[1772831686838,9.15797643,84.852,84.831,3.65271509]
[1772831687139,9.15797643,84.851,84.831,3.65271509]
[1772831687437,9.15797643,84.85,84.831,3.65271509]
[1772831687637,9.15797643,84.849,84.831,3.65271509]
[1772831687837,3.74444944,84.859,84.831,3.65271509]
[1772831688038,9.15693971,84.858,84.831,3.65271509]
[1772831688238,9.15693971,84.857,84.831,3.65271509]
[1772831688539,9.15693971,84.856,84.831,3.65271509]
[1772831688740,9.15693971,84.855,84.831,3.65271509]
[1772831688943,9.15693971,84.854,84.831,3.65271509]
[1772831689239,9.15693971,84.853,84.831,3.65271509]
[1772831689435,9.15693971,84.852,84.831,3.65271509]
[1772831689639,9.15693971,84.851,84.831,3.65271509]
[1772831689833,9.15693971,84.85,84.831,3.65271509]
[1772831690038,3.74444944,84.859,84.831,3.65271509]
[1772831690238,9.15614796,84.858,84.831,3.65271509]
[1772831690540,9.15614796,84.857,84.831,3.65271509]
[1772831690742,9.15614796,84.856,84.831,3.65271509]
[1772831690942,9.15614796,84.855,84.831,3.65271509]
[1772831691138,9.15614796,84.854,84.831,3.65271509]
[1772831691347,9.15614796,84.853,84.831,3.65271509]
[1772831691542,9.15614796,84.852,84.831,3.65271509]
[1772831691742,9.15614796,84.851,84.831,3.65271509]
[1772831691939,9.15614796,84.85,84.831,3.65271509]
[1772831692241,9.15614796,84.849,84.831,3.65271509]
[1772831692442,12.10245723,84.848,84.831,3.65271509]
[1772831692639,12.10245723,84.847,84.831,3.65271509]
[1772831692842,12.10245723,84.846,84.831,3.65271509]
[1772831693045,12.10245723,84.845,84.831,3.65271509]
[1772831693247,2.94630927,84.844,84.831,3.65271509]
[1772831693544,2.94630927,84.843,84.831,3.65271509]
[1772831693745,2.94630927,84.842,84.831,3.65271509]
[1772831693946,3.74444944,84.859,84.831,3.65271509]
[1772831694247,15.81746099,84.858,84.831,3.65271509]
[1772831694448,12.07301155,84.857,84.831,3.65271509]
[1772831694644,12.07301155,84.856,84.831,3.65271509]
[1772831694947,12.07301155,84.855,84.831,3.65271509]
[1772831695147,12.07301155,84.854,84.831,3.65271509]
[1772831695341,3.74444944,84.852,84.821,3.65271509]
[1772831695540,12.07301155,84.851,84.821,3.65271509]
[1772831695744,12.07301155,84.85,84.821,3.65271509]
[1772831695943,12.07301155,84.849,84.821,3.65271509]
[1772831696147,12.07301155,84.848,84.821,3.65271509]
[1772831696350,2.94630927,84.847,84.821,3.65271509]
[1772831696550,12.07388391,84.846,84.821,3.65271509]
[1772831696849,12.07388391,84.845,84.821,3.65271509]
[1772831697045,2.94630927,84.844,84.821,3.65271509]
[1772831697246,2.94630927,84.843,84.821,3.65271509]
[1772831697547,2.94630927,84.842,84.821,3.65271509]
[1772831697848,3.74444944,84.852,84.821,3.65271509]
[1772831697849,2.94630927,84.841,84.821,3.65271509]
[1772831698143,3.74444944,84.852,84.821,3.65271509]
[1772831698346,12.07475546,84.851,84.821,3.65271509]
[1772831698542,12.07475546,84.85,84.821,3.65271509]
[1772831698748,12.07475546,84.849,84.821,3.65271509]
[1772831698948,12.07475546,84.848,84.821,3.65271509]
[1772831699149,12.07475546,84.847,84.821,3.65271509]
[1772831699347,12.07475546,84.846,84.821,3.65271509]
[1772831699546,12.07530813,84.845,84.821,3.65271509]
[1772831699747,12.07530813,84.844,84.821,3.65271509]
[1772831700052,12.07530813,84.843,84.821,3.65271509]
[1772831700255,3.74444944,84.852,84.821,3.65271509]
[1772831700256,2.94634417,84.842,84.821,3.65271509]
[1772831700550,2.94634417,84.841,84.821,3.65271509]
[1772831700751,3.74444944,84.852,84.821,3.65271509]
[1772831700946,3.8827871,84.85,84.821,3.65271509]
[1772831701144,3.8827871,84.848,84.821,3.65271509]
[1772831701440,3.8827871,84.846,84.811,3.68943438]
[1772831701641,3.8827871,84.844,84.811,3.68943438]
[1772831701841,3.73913709,84.842,84.807,10.612]
[1772831702044,3.73913709,84.84,84.807,10.612]
[1772831702248,3.73913709,84.838,84.807,10.612]
[1772831705545,3.73913709,84.856,84.813,3.95964446]